Cogmind - Beta 14 @@@ ROGUE MODE // 2025.03.24 @ 07:01:56 Player: ochotona_princeps Result: Destroyed by G-34 Mercenary with Small Laser Performance ------------- Evolutions (1) 500 Regions Visited (3) 600 Robots Destroyed (11) 55 Value Destroyed (303) 303 Prototype IDs (2) 40 Alien Tech Used (0) 0 Bonus (30) 30 TOTAL SCORE: 1528 Bonus ------- High Alert Combat Kills 30 Cogmind --------- Core Integrity 0/400 Matter 287/300 Energy 100/100 System Corruption 0% Temperature Cool (6) Movement Core (50) Location -9/Materials Parts ------- > --- POWER (1) -------- (None) > --- PROPULSION (3) --- (None) > --- UTILITY (3) ------ Visual Processing Unit > --- WEAPON (2) ------- Hammer > --- INVENTORY (5) ---- Assault Rifle Peak State ------------ > --- POWER ------------ Light Ion Engine > --- PROPULSION ------- Flight Unit Flight Unit > --- UTILITY ---------- Visual Processing Unit Light Armor Plating > --- WEAPON ----------- Mining Laser Hammer > --- INVENTORY -------- Assault Rifle [Rating: 8] Favorites ----------- Power Light Ion Engine Engine Light Ion Engine Propulsion Flight Unit Wheel Compact Wheel Flight Unit Flight Unit Utility Light Armor Plating Processor Targeting Computer Protection Light Armor Plating Weapon Assault Rifle Energy Gun EM Pulse Gun Ballistic Gun Assault Rifle Special Weapon Mining Laser Impact Weapon Hammer Build | -11 -10 -10 -9 ------- Run | Yrd Mat Min Mat Slots Evolved 2 | . . . 2 Power . | . . . . Propulsion 1 | . . . 1 Utility 1 | . . . 1 Weapon . | . . . . Parts Attached 16 | 5 8 1 2 Power 2 | 1 1 . . Engine 2 | 1 1 . . Core . | . . . . Reactor . | . . . . Propulsion 4 | 2 2 . . Treads . | . . . . Leg . | . . . . Wheel 2 | 2 . . . Hover . | . . . . Flight 2 | . 2 . . Utility 5 | . 4 . 1 Device . | . . . . Storage . | . . . . Processor 2 | . 1 . 1 Hackware . | . . . . Protection 3 | . 3 . . Artifact . | . . . . Weapon 5 | 2 1 1 1 Energy Gun 1 | 1 . . . Energy Cannon . | . . . . Ballistic Gun 2 | 1 1 . . Ballistic Cannon . | . . . . Launcher . | . . . . Special Weapon 1 | . . . 1 Impact Weapon 1 | . . 1 . Slashing Weapon . | . . . . Piercing Weapon . | . . . . Special Melee Weapon . | . . . . Unidentified Prototypes . | . . . . Parts Lost 3 | . . . 3 Power . | . . . . Propulsion 2 | . . . 2 Utility 1 | . . . 1 Weapon . | . . . . Highest Loss Streak 3 | . . . 3 To Critical Strikes . | . . . . Average Slot Usage (%) 69 | . 77 85 37 Engine 10 | . 11 14 4 Wheel 9 | . 18 . . Flight 12 | . 6 28 8 Processor 7 | . 4 14 10 Protection 10 | . 11 14 3 Energy Gun 5 | . 9 . . Ballistic Gun 7 | . 14 . . Impact Weapon 5 | . . 13 11 Peak Build Rating 8 | 5 7 6 8 Average Rating 5 | 3 5 5 4 On Entrance 4 | . 5 6 6 Naked Turns . | . . . . Heaviest Build 13 | 7 13 8 8 Greatest Support 32 | 32 32 8 8 Greatest Overweight (x) 3 | . 3 . . Average Overweight (x) . | . . . . Largest Inventory Capacity 5 | 5 5 5 5 Average Capacity 5 | 5 5 5 5 Most Carried 4 | 1 4 2 2 Average Carried 1 | . 1 1 1 Final Capacity 5 | 5 5 5 5 Final Carried 2 | 1 1 2 1 Class Distribution -------------------- 100% | Mutant Dominant Class ---------------- Mutant | -10/Materials Mutant | -10/Mines Mutant | -9/Materials Resources | -11 -10 -10 -9 ----------- Run | Yrd Mat Min Mat Matter Collected 392 | 142 164 73 13 Remotely . | . . . . Salvage Created 347 | . 72 30 245 Parts 16 | . 7 . 9 Haulers Intercepted . | . . . . Recyclers Shooed . | . . . . Parts Field Recycled . | . . . . Retrieved Matter . | . . . . Parts Self-Destructed . | . . . . Prevented . | . . . . Kills | -11 -10 -10 -9 ------- Run | Yrd Mat Min Mat Combat Hostiles Destroyed 9 | . 3 1 5 Melee 3 | . . . 3 Guns 3 | . 3 . . Classes Destroyed 4 | . 2 1 1 Watcher 2 | . 1 . 1 Swarmer 3 | . 3 . . Grunt 5 | . . 1 4 Sentry 1 | . . . 1 Best Kill Streak 4 | . 1 1 4 Combat Bots Only 4 | . 1 1 4 Max Kills in Single Turn 1 | . 1 1 1 Gunslinging . | . . . . Exploded . | . . . . Melee 1 | . . . 1 Uniques/NPCs Destroyed . | . . . . Combat | -11 -10 -10 -9 -------- Run | Yrd Mat Min Mat Hostile Shots Fired 99 | . 16 4 79 Missed 34 | . 3 1 30 Damage Taken 737 | . 103 37 597 Core 431 | . 14 11 406 Absorbed by Shields . | . . . . Regen/Repaired (Parts) 13 | . 13 . . Core Remaining (%) 95 | 100 . 90 . Volleys Fired 21 | . 20 . 1 Largest 2 | . 2 . 1 Hottest 100 | . 60 . 100 Shots Fired 30 | . 29 . 1 Gun 29 | . 29 . . Cannon . | . . . . Launcher . | . . . . Special 1 | . . . 1 Kinetic 20 | . 20 . . Thermal 1 | . . . 1 Explosive . | . . . . Electromagnetic 9 | . 9 . . Robot Hit Streak 3 | . 3 . . Robot Miss Streak 7 | . 7 . . Penetration Max . | . . . . Secondary Targets . | . . . . Shots Hit Robots 34 | . 8 1 25 Core Hits 9 | . 5 . 4 Critical Kills . | . . . . Critical Parts Destroyed 5 | . . 1 4 Critical Strikes 5 | . . 1 4 Smash 5 | . . 1 4 Melee Attacks 29 | . . 1 28 Impact 29 | . . 1 28 Slashing . | . . . . Piercing . | . . . . Sneak Attacks . | . . . . Combat Hostiles . | . . . . Follow-up Attacks . | . . . . Damage Inflicted 772 | . 104 39 629 Guns 104 | . 104 . . Cannons . | . . . . Explosions . | . . . . Melee 668 | . . 39 629 Ramming . | . . . . Kinetic 92 | . 92 . . Thermal . | . . . . Explosive . | . . . . Electromagnetic 12 | . 12 . . Impact 668 | . . 39 629 Slashing . | . . . . Piercing . | . . . . Highest Corruption . | . . . . Average Corruption . | . . . . Corruption Purged . | . . . . Corruption Blocked . | . . . . Overload Shots . | . . . . Overflow Damage 188 | . . 39 149 Projectiles . | . . . . Explosions . | . . . . Melee 188 | . . 39 149 Knockbacks 4 | . . . 4 Impact 3 | . . . 3 Kinetic . | . . . . Secondary 1 | . . . 1 Self-Inflicted Damage . | . . . . Shots . | . . . . Rammed . | . . . . Targets Rammed . | . . . . Kicked . | . . . . Crushed . | . . . . Highest Temperature 162 | . 162 . 28 Average Temperature 67 | . 82 . 12 Received Heat Transfer 429 | . . 21 408 Siege Activations . | . . . . Robots Corrupted 4 | . . 1 3 Combat Hostiles 3 | . . 1 2 Parts Fried 9 | . . 3 6 Impact Corruptions 7 | . . 1 6 Robots Melted . | . . . . Combat Hostiles . | . . . . Parts Melted . | . . . . Heat Transferred . | . . . . Parts Sabotaged . | . . . . Parts Stolen . | . . . . Parts Stripped . | . . . . Power Chain Reactions . | . . . . Alert | -11 -10 -10 -9 ------- Run | Yrd Mat Min Mat Peak Influence 467 | . 129 99 467 Initial 38 | . . 19 38 Average 68 | . 40 52 164 Maximum Alert Level 2 | . . . 2 Low Security (%) 93 | 100 100 100 71 Level 1 3 | . . . 15 Level 2 2 | . . . 13 Level 3 . | . . . . Level 4 . | . . . . Level 5 . | . . . . High Security . | . . . . Max Security . | . . . . Squads Dispatched 2 | . . . 2 Investigation 1 | . . . 1 Extermination . | . . . . Reinforcement 1 | . . . 1 Assault . | . . . . Garrison . | . . . . Intercept . | . . . . Searches Triggered . | . . . . Construction Impeded . | . . . . Haulers Reinforced . | . . . . Active Scanning Responses . | . . . . Cargo Convoy Interrupts . | . . . . Stealth | -11 -10 -10 -9 --------- Run | Yrd Mat Min Mat Distress Signals 1 | . . . 1 Communications Jammed . | . . . . Distress Signals . | . . . . Times Spotted 35 | . 7 5 23 Peak Tracking Total 13 | . 3 2 13 Tactical Retreats 8 | . . 3 5 Traps | -11 -10 -10 -9 ------- Run | Yrd Mat Min Mat Traps Triggered . | . . . . Indirectly . | . . . . Trap Hack Attempts . | . . . . Triggered . | . . . . Disarmed . | . . . . Reprogrammed . | . . . . Reused . | . . . . Traps Extracted . | . . . . Installed . | . . . . Triggered . | . . . . Machines | -11 -10 -10 -9 ---------- Run | Yrd Mat Min Mat Machines Disabled . | . . . . Max in Single Turn . | . . . . Machines Repaired . | . . . . Machines Dismantled . | . . . . Machines Sabotaged . | . . . . Overloaded Fab Kills . | . . . . Hacking | -11 -10 -10 -9 --------- Run | Yrd Mat Min Mat Machines Accessed 9 | . 6 . 3 Terminals 7 | . 4 . 3 Fabricators . | . . . . Repair Stations 1 | . 1 . . Recycling Units 1 | . 1 . . Scanalyzers . | . . . . Garrison Access . | . . . . Total Hacks 24 | . 16 . 8 Successful 11 | . 9 . 2 Failed 13 | . 7 . 6 Catastrophic 5 | . 4 . 1 Database Lockouts . | . . . . Manual 16 | . 8 . 8 Terminals 21 | . 13 . 8 Fabricators . | . . . . Repair Stations 2 | . 2 . . Recycling Units 1 | . 1 . . Scanalyzers . | . . . . Garrison Access . | . . . . Terminal Hacks 6 | . 5 . 1 Robot Analysis 1 | . 1 . . Prototype ID Bank 1 | . 1 . . Terminal Index 2 | . 1 . 1 Patrol Status 1 | . 1 . . Registered Components 1 | . 1 . . Fabricator Hacks . | . . . . Repair Station Hacks 2 | . 2 . . Scan Component 1 | . 1 . . Repair 1 | . 1 . . Recycling Unit Hacks 1 | . 1 . . Retrieve Components 1 | . 1 . . Scanalyzer . | . . . . Garrison Access Hacks . | . . . . Unauthorized Hacks 2 | . 1 . 1 Terminals 2 | . 1 . 1 Operators 2 | . 1 . 1 Fabricators . | . . . . Repair Stations . | . . . . Recycling Units . | . . . . Scanalyzers . | . . . . Garrison Access . | . . . . Data Cores Recovered . | . . . . Used . | . . . . Hacking Detections 7 | . 4 . 3 Full Trace Events 1 | . . . 1 Feedback Events . | . . . . Feedback Blocked . | . . . . Robot Schematics Acquired . | . . . . Robots Built . | . . . . Authchips . | . . . . Time . | . . . . Total Robot Build Rating . | . . . . Part Schematics Acquired . | . . . . Parts Built . | . . . . Authchips . | . . . . Time . | . . . . Total Part Build Rating . | . . . . Parts Repaired 1 | . 1 . . Time 36 | . 36 . . Parts Recycled . | . . . . Recycled Matter . | . . . . Retrieved Matter . | . . . . Retrieved Components 6 | . 6 . . Parts Scanalyzed . | . . . . Part Schematics Acquired . | . . . . Parts Damaged . | . . . . Bothacking | -11 -10 -10 -9 ------------ Run | Yrd Mat Min Mat Used RIF Installer . | . . . . Robots Hacked . | . . . . Non-combat . | . . . . Combat . | . . . . Robot Hacks Applied . | . . . . Relay Couplers Released . | . . . . Fabnet Peak Effective % . | . . . . Robots Rewired . | . . . . Allies Hacked . | . . . . Hacks Repelled . | . . . . Allies | -11 -10 -10 -9 -------- Run | Yrd Mat Min Mat Total Allies . | . . . . Largest Group . | . . . . Highest-Rated Group . | . . . . Highest-Rated Ally . | . . . . Total Orders . | . . . . Ally Attacks . | . . . . Total Damage . | . . . . Kills . | . . . . Allies Corrupted . | . . . . Allies Melted . | . . . . Intel | -11 -10 -10 -9 ------- Run | Yrd Mat Min Mat Robot Analysis Total 1 | . 1 . . Derelict Logs Recovered . | . . . . Drone Launches . | . . . . Drone Recoveries . | . . . . Exploration | -11 -10 -10 -9 ------------- Run | Yrd Mat Min Mat Turns Passed 970 | 55 479 217 219 Spaces Moved 1309 | 51 503 461 294 Core 156 | 8 2 . 146 Treads . | . . . . Legs . | . . . . Wheels 330 | 43 287 . . Hover . | . . . . Flight 823 | . 214 461 148 Fastest Speed 37 | 50 37 37 37 Average Speed 54 | 92 73 37 43 Slowest Speed 200 | 100 200 37 50 Overloaded Moves . | . . . . Propulsion Burnouts . | . . . . Robots Hopped 9 | . . 8 1 Cave-ins Triggered . | . . . . Exploration Rate (%) 39 | 3 67 56 32 Regions Visited 3 Branch Regions 1 Pre-discovered Areas . | . . . . Known Exits Taken . | . . . . Unknown Exits Taken 3 | 1 1 1 . Scrap Searched 1 | . . 1 . Spaces Dug 1 | . . . 1 Terrain Destroyed 1 | . . . 1 Melee . | . . . . Projectile 1 | . . . 1 AOE . | . . . . Terrain Rammed . | . . . . Walls Destroyed . | . . . . Machines Disabled . | . . . . Actions | -11 -10 -10 -9 --------- Run | Yrd Mat Min Mat Total 1469 | 56 582 497 334 Wait 87 | . 39 41 7 Move 1288 | 50 502 444 292 Hop 9 | . . 8 1 Pick Up 6 | 1 4 1 . Fast Attach 13 | 5 6 1 1 Attach 3 | . 2 . 1 Detach 1 | . 1 . . Swap . | . . . . Drop 12 | . 8 1 3 Fire 21 | . 20 . 1 Melee 29 | . . 1 28 Ram . | . . . . Kick . | . . . . Crush . | . . . . Escape Stasis . | . . . . Rewire . | . . . . Trap . | . . . . Miscellaneous . | . . . . Route ------- -11/Scrapyard -10/Materials (discovered 3 exits: *Mat / [*Min x2]) -10/Mines -9/Materials (discovered 1 exit: [*Min]) History --------- Turn | Location | Event 4 | -11/Scrapyard | Discovered new exit (range 16) 56 | -11/Scrapyard | Entered Materials 82 | -10/Materials | Discovered new exit (range 16) 312 | -10/Materials | Build established: Mutant 335 | -10/Materials | Discovered new exit (range 14) 456 | -10/Materials | Repaired Corrupted Flight Unit 475 | -10/Materials | Discovered new exit (range 15) 535 | -10/Materials | Entered Mines 735 | -10/Mines | Discovered new exit (range 10) 752 | -10/Mines | Entered Materials 752 | -9/Materials | Evolved 2 slots: Propulsion x1, Utility x1 783 | -9/Materials | Discovered new exit (range 9) 867 | -9/Materials | Lost 3 parts (2n1u) 884 | -9/Materials | Core integrity fell below 50% 962 | -9/Materials | Core integrity fell below 20% 971 | -9/Materials | Destroyed by G-34 Mercenary with Small Laser Last Messages --------------- 00953_ G-34 Mercenary knocked back. 00956_ G-34 Mercenary suffers critical hit (Smash). 00956_ Destroyed Aluminum Leg. 00956_ G-34 Mercenary system corrupted by crushing effect. 00956_ G-34 Mercenary misfires. 00957_ G-34 Mercenary system terminally corrupted. 00957_ Sml. Laser fried. 00957_ Heat Sink fried. 00957_ Ion Engine fried. 00958_ Critical hit (Burn: +37). 00961_ Y-45 Defender suffers critical hit (Smash). 00961_ Destroyed Heat Sink. 00961_ Y-45 Defender system corrupted by crushing effect. 00964_ Critical hit (Burn: +37). 00970_ Y-45 Defender destroyed. Map ----- +----------------------------------------------------+ | | | | | | | | | | | | | | | | | | | ?????????????????????????????????????????????????? | | ?????????????????????????????????????????????????? | | ?????????????????????????????????????????????????? | | ?????????????????????????????????????????????????? | | ?????????????????????????????????????????????????? | | ?????????????????????????????????????????????????? | | ?????????????????????????????????????????????????? | | ?????????????????????????????????????????????????? | | ?????????????????????????????????????????????????? | | ?????????????????????????????????????????????????? | | ????????? ?????????????????????????????????????? | | ????????? ?????##############??????????????????? | | ????????? #????# #??????????????????? | | ????????# #????# """"" #??????????????????? | | ????????# #????# """" """" #??????????????????? | | ????????# #????# """[ "" #??????????????????? | | ????????# #????#! !*=@* !#??????????????????? | | ????????+ ############g#########???????????????? | | ????????# g% #???????????????? | | ????????# = ###########?????? | | ????????# | | ????????# ################## ########## | | ????????# ## # # #???????????????? | | ????????# ## # T # #???????????????? | | ????????# ## # + #???????????????? | | ????????# ## # """ # ^#???????????????? | | ??####### ## #|! """ # #???????????????? | | ??# ## #!! """?# #???????????????? | | ??# ###### ## #!! ?# #???????????????? | | ??# #????# ## #? ??# #???????????????? | | ###+###### + #??#/###??# #???????????????? | | """ ## ### #??# #????# #???????????????? | | """ [ ## #?###+###### ##???# #???????????????? | | """ ## #### #???# #???????????????? | | / #???# #???????????????? | | "" ####### T #???# #???????????????? | | """#?????# #???# #???????????????? | | S"#?????# #???# #???????????????? | | #?????# #???# ##### ??????? | | ##+######?????# ##### + ???????? | | # +?????# """ #####???????????? | +----------------------------------------------------+ Best States ------------- Heat Dissipation 28 Energy Generation 10 Energy Capacity 125 Matter Stores 300 Matter Capacity 300 Sight Range 18 Terrain Scan Density 10 Armor Coverage 300 Evasion (%) 62 Targeting Accuracy 5 Item Schematics ----------------- None Robot Schematics ------------------ None Fabricated ------------ Nothing Alien Tech Used ----------------- None Achievements -------------- None Challenges ------------ None Game ------ Seed LaserDisposableRefractor Manual? 0 Play Time 00:15:32 Cumulative 192.4 hours Start 2025.03.24 @ 06:46:19 End 2025.03.24 @ 07:01:56 Sessions 1 Manual Loads 0 Difficulty Rogue Special Mode None Game No. 189 Rogue 128 Adventurer 61 Explorer 0 Win Type - Total 9 Types 7/0/2/0/0/0/0/0/0 Lore% 30 Gallery% 63 Achievement% 60 Wizard Run 0 Options --------- Layout 1 ASCII 0 Keyboard 0 Movement Numpad Keybinds 0 Fullscreen 2 Font 32/SmallcapsGlow Map View 50x35 Zoom Use 0% Tactical HUD 1 Map Filters NONE Filters NONE Steam 1 RUN: 612829bd-7dc1-4a60-9f35-49d87abf2067